[Event "American Cup Blitz 2024"]
[Site "Saint Louis"]
[Date "2024.03.21"]
[Round "2.6"]
[White "Sevian, Samuel"]
[Black "Antipov, Mikhail Al."]
[Result "1-0"]
[ECO "C77"]
[WhiteElo "2697"]
[BlackElo "2573"]
[Annotator "TA"]
[PlyCount "107"]
[EventDate "2024.03.21"]
[EventType "swiss"]
[EventCountry "USA"]
[SourceTitle "playchess.com"]
[Source "ChessBase"]
[SourceQuality "1"]
[TimeControl "180+2"]

{[%evp 14,107,-15,-12,0,-8,31,0,12,0,20,0,93,89,116,92,109,102,150,77,135,113,117,118,130,105,140,130,134,121,178,192,263,258,415,304,306,308,378,371,407,430,375,375,464,401,481,426,467,430,472,479,462,416,470,464,552,550,597,495,745,439,645,603,655,642,632,634,888,866,1012,997,995,980,1036,946,2595,1062,1202,1154,1108,1084,29985,29986,29986,29987,29987,29988,29987,29988,29992,29986,29983,29964,29996,26]} 1. e4 {[%emt 0:00:01]} e5 {[%emt 0:00:00]} 2. Nf3 {[%emt 0:00:01]} Nc6 {[%emt 0:00:01]} 3. Bb5 {[%emt 0:00:02]} Nf6 {[%emt 0:00:01]} 4. Qe2 {[%emt 0:00:02]} a6 {[%emt 0:00:56]} 5. Ba4 {[%emt 0:00:01]} b5 {[%emt 0:00:07]} 6. Bb3 {[%emt 0:00:01]} Bc5 {[%emt 0:00:00]} 7. c3 {[%emt 0:00:00]} d6 {[%emt 0:00:07]} 8. O-O {[%emt 0:00:02]} h6 {[%emt 0:00:31]} 9. Rd1 {[%emt 0:00:01]} Qe7 {[%emt 0:00:42]} 10. d3 {[%emt 0:00:11][%cal Bd2d3,Bd3d4][%mdl 32]} Bb6 {[%emt 0:00:03] The position is equal.} 11. Nbd2 {[%emt 0:00:01]} Be6 {[%emt 0:00:16]} 12. Bc2 {[%emt 0:00:04]} Nb8 {[%emt 0:00:27] [#]} (12... O-O $11 {keeps the balance.}) 13. a4 $1 $16 {[%emt 0:00:12]} c6 {[%emt 0:00:07]} 14. axb5 {[%emt 0:00:14]} cxb5 15. d4 {[%emt 0:00:01]} O-O {[%emt 0:00:09]} (15... Qc7 $142) 16. h3 {[%emt 0:00:06]} (16. dxe5 $142 dxe5 17. Nxe5) 16... Bc8 {[%emt 0:00:03]} (16... exd4 $142 17. Nxd4 (17. cxd4 Nc6 $11) 17... Bxd4 18. cxd4 Nc6) 17. Nf1 {[%emt 0:00:06]} Nc6 {[%emt 0:00:01]} 18. Ng3 {[%emt 0:00:04]} Re8 {[%emt 0:00:01]} 19. Be3 {[%emt 0:00:07]} Rb8 20. Nh4 {[%emt 0:00:21]} exd4 {[%emt 0:00:01]} 21. cxd4 {[%emt 0:00:10][%cal Bc3d4,Bd4d5][%mdl 32]} Nb4 {[%emt 0:00:01]} (21... g6 $16 {keeps fighting.} 22. Nf3 (22. Bxh6 Nxd4 23. Rxd4 Bxd4 $17) 22... Kh7) 22. Nhf5 $18 {[%emt 0:00:09]} Qf8 (22... Bxf5 $142 23. Nxf5 Qe6) 23. Bb1 {[%emt 0:00:09]} Bb7 $2 {[%emt 0:00:07]} (23... Bxf5 24. Nxf5 Kh8) 24. d5 {[%emt 0:00:15]} Bxe3 {[%emt 0:00:02]} 25. Nxe3 {[%emt 0:00:01]} ({Much less strong is} 25. fxe3 $6 g6 $18) 25... Rbc8 {[%emt 0:00:06]} 26. Qd2 {[%emt 0:00:05]} a5 {[%emt 0:00:00]} 27. Rxa5 {[%emt 0:00:02]} Na6 {[%emt 0:00:01]} 28. Rxb5 {[%emt 0:00:02]} Rc7 {[%emt 0:00:01]} 29. b4 {[%emt 0:00:01]} Rb8 {[%emt 0:00:02]} 30. Bd3 {[%emt 0:00:03]} Bc8 {[%emt 0:00:06]} 31. Ra1 {[%emt 0:00:06]} Rxb5 {[%emt 0:00:02]} 32. Bxb5 {[%emt 0:00:01]} Nb8 {[%emt 0:00:02]} 33. Rc1 {[%emt 0:00:07]} Qd8 {[%emt 0:00:00]} 34. Bc6 {[%emt 0:00:03]} Re7 {[%emt 0:00:04]} 35. Qd4 {[%emt 0:00:03]} Na6 {[%emt 0:00:01]} 36. Bb5 {[%emt 0:00:05]} Nc7 {[%emt 0:00:02]} (36... h5 $142 37. f3 Nxb4 38. Qxb4 Ne8 39. Bxe8 (39. Nxh5 Rc7 $18) 39... Rxe8) 37. Bd3 {[%emt 0:00:01]} Bd7 {[%emt 0:00:03]} (37... Nce8 $142 38. f4 Rc7) 38. Qb6 {[%emt 0:00:06]} Nfe8 {[%emt 0:00:01]} 39. Ngf5 {[%emt 0:00:04]} Bxf5 {[%emt 0:00:01]} 40. Nxf5 {[%emt 0:00:01]} Re5 {[%emt 0:00:03]} 41. b5 {[%emt 0:00:03]} h5 {[%emt 0:00:03]} 42. f4 {[%emt 0:00:11]} Rxf5 {[%emt 0:00:02]} 43. exf5 {[%emt 0:00:01]} Qe7 {[%emt 0:00:02]} 44. Qd4 {[%emt 0:00:01] aiming for b6.} Na8 {[%emt 0:00:02]} 45. b6 {[%emt 0:00:02]} Qb7 {[%emt 0:00:01] Prevents Rc8.} 46. Rb1 {[%emt 0:00:05]} Nf6 {[%emt 0:00:02] [#]} 47. Ba6 $1 {[%emt 0:00:01]} Qxa6 {[%emt 0:00:02]} (47... Qb8 48. b7) 48. b7 {[%emt 0:00:01] White mates.} Nd7 {[%emt 0:00:00]} 49. b8=Q+ {[%emt 0:00:11]} Nxb8 {[%emt 0:00:01]} 50. Rxb8+ {[%emt 0:00:02]} Kh7 {[%emt 0:00:01]} 51. f6 {[%emt 0:00:04]} g6 {[%emt 0:00:01][%cal Bg7g6,Bg6g5][%mdl 32] [#]} 52. f5 $1 {[%emt 0:00:01]} g5 {[%emt 0:00:01]} 53. Qe3 {[%emt 0:00:06]} h4 {[%emt 0:00:09] [#]} 54. Rh8+ $3 {[%emt 0:00:04][%mdl 33280] Black did not feel at home in the position after the opening.   Weighted Error Value: White=0.33/Black=0.50.  Mistake:       	White=1     	Black=8      Inaccurate:     	White=2     	Black=3      OK:         	White=10    	Black=8      Best:        	White=1     	---        Strong:       	White=1     	---       . Loss on time!?} 1-0

[Event "American Cup Blitz 2024"]
[Site "Saint Louis"]
[Date "2024.03.21"]
[Round "2.7"]
[White "Kevlishvili, Robby"]
[Black "Robson, Ray"]
[Result "1-0"]
[ECO "B90"]
[WhiteElo "2524"]
[BlackElo "2696"]
[Annotator "TA"]
[PlyCount "101"]
[EventDate "2024.03.21"]
[EventType "swiss"]
[EventCountry "USA"]
[SourceTitle "playchess.com"]
[Source "ChessBase"]
[SourceQuality "1"]
[TimeControl "180+2"]

{[%evp 14,101,8,-13,29,0,14,0,61,44,48,56,57,45,71,53,58,47,43,41,69,33,29,22,31,34,39,27,95,89,96,75,72,46,103,91,105,98,156,144,158,158,159,134,291,324,315,295,521,195,533,532,685,678,650,303,416,438,414,456,450,393,392,401,368,313,1173,1173,1111,1111,1064,0,679,0,1114,1116,29992,192,29981,29981,29997,787,793,767,778,721,5257,5197,4132,3125]} 1. e4 {[%emt 0:00:02]} c5 {[%emt 0:00:01]} 2. Nf3 {[%emt 0:00:01]} d6 {[%emt 0:00:00]} 3. d4 {[%emt 0:00:01]} cxd4 {[%emt 0:00:01]} 4. Nxd4 {[%emt 0:00:01]} Nf6 {[%emt 0:00:01]} 5. Nc3 {[%emt 0:00:01]} a6 {[%emt 0:00:01]} 6. Be3 {[%emt 0:00:03]} Ng4 {[%emt 0:00:01]} 7. Bc1 {[%emt 0:00:02]} Nf6 {[%emt 0:00:01]} 8. Rg1 {[%emt 0:00:05]} h5 {[%emt 0:00:03]} 9. h3 {[%emt 0:00:01]} g6 {[%emt 0:00:01]} 10. Be3 {[%emt 0:00:02]} Nc6 {[%emt 0:00:07]} (10... b5 $11) 11. Qd2 {[%emt 0:00:06] White is more active.} Bg7 {[%emt 0:00:14]} 12. O-O-O {[%emt 0:00:05]} Bd7 {[%emt 0:00:09]} 13. Kb1 {[%emt 0:00:06]} Rc8 {[%emt 0:00:08]} 14. f3 {[%emt 0:00:24][%cal Bf2f3,Bf3f4][%mdl 32]} h4 {[%emt 0:00:05]} 15. Bd3 {[%emt 0:00:09]} b5 {[%emt 0:00:24]} 16. f4 {[%emt 0:00:08]} Nh5 {[%emt 0:00:21]} 17. Nce2 {[%emt 0:00:22]} Nxd4 {[%emt 0:00:18]} 18. Bxd4 {[%emt 0:00:08]} e5 {[%emt 0:00:08]} 19. Be3 {[%emt 0:00:16][%cal Bd4e3,Be3f4,Bf4d6,Bd6c5][%mdl 32]} exf4 {[%emt 0:00:29]} 20. Nxf4 {[%emt 0:00:01]} Qf6 {[%emt 0:00:05]} (20... Nxf4 $11 21. Bxf4 Be5) 21. c3 $16 {[%emt 0:00:12] Hoping for Bc2.} Nxf4 {[%emt 0:00:03]} 22. Bxf4 {[%emt 0:00:01][%cal Oe4e5]} O-O {[%emt 0:00:06]} 23. Rgf1 {[%emt 0:00:01][%cal Od3c4]} Bc6 {[%emt 0:00:07] White stays focused until the end.} (23... Rfe8 $14) 24. Bc2 {[%emt 0:00:11]} Qe6 {[%emt 0:00:27]} 25. Bxd6 {[%emt 0:00:19] [#] And now Ka1 would win.} Rfe8 {[%emt 0:00:14]} (25... Rcd8 $142) 26. Bb3 $36 {[%emt 0:00:25][%mdl 2048] White is in control.} Bxe4+ {[%emt 0:00:01]} 27. Ka1 {[%emt 0:00:01]} Rc4 {[%emt 0:00:01]} 28. Bc5 {[%emt 0:00:19]} (28. Bxc4 Qxc4 29. Ba3 a5 $16) 28... Qc6 $2 {[%emt 0:00:05]} (28... a5 $16 29. Bd4 (29. Bxc4 Qxc4 30. Qd7 Ra8 $16) 29... Bxd4 30. cxd4 Qd5) 29. Bxc4 $18 {[%emt 0:00:02]} bxc4 {[%emt 0:00:01]} 30. Qf2 {[%emt 0:00:08][%csl LRf7,LRh4]} f5 {[%emt 0:00:05]} (30... Bf5 31. Bd4 Re4) 31. Rfe1 $2 {[%emt 0:00:00]} (31. Rd6 Qc8 32. Rxg6) 31... Rb8 $2 {[%emt 0:00:10]} (31... Be5 {is tougher.}) 32. Bd4 {[%emt 0:00:03]} g5 {[%emt 0:00:03]} 33. Bxg7 {[%emt 0:00:01]} Kxg7 {[%emt 0:00:01]} 34. Qd4+ {[%emt 0:00:01]} (34. g4 $142) 34... Kg6 {[%emt 0:00:03]} 35. Qe5 {[%emt 0:00:05]} Rb6 36. Rd8 {[%emt 0:00:04]} Qf6 {[%emt 0:00:04]} 37. Rg8+ {[%emt 0:00:03]} Kh7 {[%emt 0:00:01]} 38. Qe8 {[%emt 0:00:09]} Re6 {[%emt 0:00:01]} 39. Qb8 {[%emt 0:00:01]} Bxg2 $2 {[%emt 0:00:05]} (39... a5 40. Rf8 Qg7) 40. Rxe6 {[%emt 0:00:04]} Qxe6 {[%emt 0:00:01][%mdl 4096] Endgame. KQR-KQB} 41. Rh8+ (41. Rxg5 $2 Qe1#) 41... Kg6 {[%emt 0:00:01]} 42. Rg8+ {[%emt 0:00:05]} Kh7 $1 {[%emt 0:00:01][%cal Re6e1]} 43. Rh8+ {[%emt 0:00:01]} (43. Rxg5 $2 Qe1#) (43. Re8 $142 Qd7 44. Rd8) 43... Kg6 {[%emt 0:00:00][%cal Re6e1]} 44. a3 {[%emt 0:00:02] White wants to mate with Qf8.} f4 {[%emt 0:00:07]} 45. Rg8+ $2 {[%emt 0:00:02]} (45. Qf8 {mates} Qf7 46. Rh6+ Kf5 47. Qxf7+ Ke4 48. Qb7+ (48. Rxa6 Ke3 49. Qe7+ Kf2 50. Qxg5 Kg1 51. Qxf4 Bxh3 52. Rg6+ Bg2 53. Qf3 h3 54. Qxh3 Kf1 55. Rxg2 Ke1 56. Qh1#) (48. Qxc4+ Ke3 49. Qd4+ Kf3 50. Qd5+ Kf2 51. Qxg5 f3 52. Qxh4+ Kf1) 48... Ke3 49. Qxg2 Kd3 50. Rd6+ (50. Qxg5 Ke4 51. Re6+ Kf3 52. Qg4+ Kf2 53. Re2+ Kf1 54. Qg2#) 50... Ke3 51. Re6+ Kd3 52. Qe2#) 45... Kh7 $2 {[%emt 0:00:01] [#]} (45... Kh5 $18) 46. Rxg5 {[%emt 0:00:03]} Be4 {[%emt 0:00:04]} 47. Qf8 {[%emt 0:00:02]} (47. Qc7+ $142 Qd7 48. Qxd7+ Kh8 49. Qg7#) 47... Bg6 {[%emt 0:00:01] White is clearly winning.} 48. Rg1 {[%emt 0:00:01]} (48. Qxf4 $2 {gets mated.} Qe1+ (48... Qxh3 $2 {too greedy.} 49. Rg1 $18) (48... Qxh3 $2 {loses.} 49. Rg1 $18)) 48... Qe3 {[%emt 0:00:02]} 49. Rd1 {[%emt 0:00:03]} Qxh3 {[%emt 0:00:03]} 50. Qxf4 {[%emt 0:00:02]} Kg7 {[%emt 0:00:03]} 51. Qe5+ {[%emt 0:00:01] Weighted Error Value: White=0.73/Black=0.71.  Mistake:       	White=1     	Black=8      Inaccurate:     	White=3     	Black=3      OK:         	White=10    	Black=8      Best:        	White=4     	Black=7} 1-0

[Event "American Cup Blitz 2024"]
[Site "Saint Louis"]
[Date "2024.03.21"]
[Round "2.8"]
[White "Shankland, Sam"]
[Black "Akobian, Varuzhan"]
[Result "0-1"]
[ECO "A90"]
[WhiteElo "2674"]
[BlackElo "2571"]
[Annotator "TA"]
[PlyCount "102"]
[EventDate "2024.03.21"]
[EventType "swiss"]
[EventCountry "USA"]
[SourceTitle "playchess.com"]
[Source "ChessBase"]
[SourceQuality "1"]
[TimeControl "180+2"]

{[%evp 26,102,45,39,49,44,40,37,35,35,51,25,39,30,47,47,84,55,91,68,88,55,73,52,103,52,55,38,78,72,66,67,147,141,131,121,128,114,174,110,109,106,145,122,194,133,248,245,227,225,281,267,276,268,354,349,342,316,796,777,5518,805,29970,29971,29957,29950,29987,29988,29988,45,27,-1091,-1012,-29973,-29973,-29977,-29978,-29980,-29973]} 1. d4 {[%emt 0:00:00]} e6 {[%emt 0:00:01]} 2. c4 {[%emt 0:00:02]} f5 {[%emt 0:00:02]} 3. g3 {[%emt 0:00:02]} Nf6 {[%emt 0:00:01]} 4. Bg2 {[%emt 0:00:01]} d5 {[%emt 0:00:02]} 5. Nf3 {[%emt 0:00:04]} c6 {[%emt 0:00:01]} 6. O-O {[%emt 0:00:05]} Bd6 {[%emt 0:00:01]} 7. b3 {[%emt 0:00:01]} Qe7 {[%emt 0:00:01]} 8. Bb2 {[%emt 0:00:08]} O-O {[%emt 0:00:03]} 9. Ne5 {[%emt 0:00:04]} Nbd7 {[%emt 0:00:09]} 10. Nd2 {[%emt 0:00:04]} Ne4 {[%emt 0:00:07]} 11. Ndf3 {[%emt 0:00:02]} Nxe5 {[%emt 0:00:10] A90: Holländische Verteidigung (Klassisches System, Stonewall und Varianten mit Lb4).} 12. Nxe5 {[%emt 0:00:05]} Bd7 {[%emt 0:00:07]} 13. e3 {[%emt 0:00:07]} Be8 {[%emt 0:00:10]} 14. f3 {[%emt 0:00:21]} Nf6 {[%emt 0:00:04]} 15. a4 {[%emt 0:00:02]} a5 {[%emt 0:00:38]} 16. Qc1 $146 {[%emt 0:00:06]} ({Predecessor:} 16. Qd2 Nd7 17. Nd3 Bg6 18. Qe2 Rae8 19. Rac1 dxc4 20. bxc4 e5 21. c5 Bc7 22. Qd2 {1-0 Novak,V (2417)-Manduch,M (2385) USA C email ICCF email 2015}) 16... Nd7 {[%emt 0:00:03]} 17. Nd3 {[%emt 0:00:05]} Bf7 {[%emt 0:00:17]} 18. f4 {[%emt 0:00:28]} Bh5 {[%emt 0:00:04]} 19. Re1 {[%emt 0:00:03]} Nf6 {[%emt 0:00:20]} 20. Ba3 {[%emt 0:00:00]} Ne4 {[%emt 0:00:00]} 21. Bxd6 {[%emt 0:00:07]} Qxd6 {[%emt 0:00:01]} 22. Qa3 {[%emt 0:00:12]} Qd8 {[%emt 0:00:30]} 23. Rac1 {[%emt 0:00:17]} h6 {[%emt 0:00:11]} 24. Ne5 {[%emt 0:00:08]} Kh7 {[%emt 0:00:06]} (24... Nf6 $14) 25. cxd5 {[%emt 0:00:34]} (25. Bxe4 $16 dxe4 26. Rb1) 25... exd5 $14 {[%emt 0:00:01]} 26. Bxe4 {[%emt 0:00:07]} fxe4 {[%emt 0:00:04]} 27. Rf1 {[%emt 0:00:02]} Re8 {[%emt 0:00:21]} 28. Rc2 {[%emt 0:00:04]} Qe7 {[%emt 0:00:01]} ({Günstiger ist} 28... Re7 $14) 29. Qxe7 $16 {[%emt 0:00:04]} Rxe7 {[%emt 0:00:01]} 30. g4 {[%emt 0:00:04]} Be8 {[%emt 0:00:02]} 31. h4 {[%emt 0:00:02]} Ra6 {[%emt 0:00:06]} (31... g6 $16 32. f5 Bf7) 32. h5 {[%emt 0:00:06]} (32. f5 $18) 32... Rb6 $16 {[%emt 0:00:01]} 33. Rc3 {[%emt 0:00:01]} Kg8 {[%emt 0:00:04]} 34. Kg2 {[%emt 0:00:02]} Rb4 {[%emt 0:00:02]} (34... Re6 $16 35. Kg3 Kf8) 35. Kg3 {[%emt 0:00:05]} (35. f5 $18) 35... Rb6 {[%emt 0:00:09] [#]} (35... Re6 $16 {war nötig.} 36. f5 Rd6) 36. f5 $1 $18 {[%emt 0:00:08]} Ra6 {[%emt 0:00:07]} 37. f6 {[%emt 0:00:04]} gxf6 {[%emt 0:00:01]} 38. Rxf6 {[%emt 0:00:01]} Kg7 {[%emt 0:00:00] [#]} 39. Rd6 $1 {[%emt 0:00:01]} Ra8 {[%emt 0:00:05]} 40. Rc1 {[%emt 0:00:02]} Bf7 {[%emt 0:00:04]} 41. Rf1 {[%emt 0:00:02]} Rf8 $2 {[%emt 0:00:01]} (41... Be6 42. Kh4 c5) 42. Rdf6 $18 {[%emt 0:00:07]} Rc7 {[%emt 0:00:04]} 43. Kh4 {[%emt 0:00:04]} (43. g5 $142 Bxh5 44. gxh6+ (44. Rxf8 Bf3 $18) 44... Kh7 45. Rxf8) 43... Re7 {[%emt 0:00:01]} 44. g5 {[%emt 0:00:03]} hxg5+ {[%emt 0:00:01]} 45. Kxg5 {[%emt 0:00:01]} c5 {[%emt 0:00:04]} 46. h6+ {[%emt 0:00:07]} Kg8 {[%emt 0:00:01]} 47. Rxf7 $2 {[%emt 0:00:02]} (47. Ng6 {setzt Matt} Rc7 48. Nxf8 Kxf8 49. h7 Kg7 50. Rxf7+ Rxf7 51. Rxf7+ Kxf7 52. h8=Q (52. h8=R cxd4 53. exd4 Ke6 $18)) 47... Rexf7 $14 {[%emt 0:00:00]} 48. Rxf7 $4 {[%emt 0:00:01][%mdl 8192]} (48. Nxf7 $11 Rxf7 49. Rd1 (49. Rxf7 $2 Kxf7 50. dxc5 d4 $19)) 48... Rxf7 $19 {[%emt 0:00:01]} 49. Nxf7 {[%emt 0:00:02]} Kxf7 {[%emt 0:00:00]} 50. dxc5 {[%emt 0:00:08]} d4 $1 {[%emt 0:00:01]} 51. Kf4 {[%emt 0:00:01]} d3 {[%emt 0:00:01]} 0-1